lending/lending_fUSD_20250102
["ID","MTS","AMOUNT","RATE_DAILY","PERIOD"]
[347418155,1735779047783,-1269.83,0.00010958,2]
[347418156,1735779047792,-500.0,0.00010958,2]
[347418157,1735779047801,-3641.15008,0.00010958,2]
[347418158,1735779047810,-495.83,0.00010958,2]
[347418159,1735779047820,-150.0,0.00010959,2]
[347418160,1735779047829,-9412.68047468,0.00010968,2]
[347418161,1735779047838,-3292.96537642,0.00010969,2]
[347418162,1735779047846,-6542.04532661,0.00010969,2]
[347418163,1735779047855,-13792.34693465,0.0001097,2]
[347418164,1735779047865,-200.0,0.00010972,2]
[347418165,1735779047873,-9412.68047468,0.00010972,2]
[347418166,1735779047882,-500.0,0.00010973,2]
[347418167,1735779047891,-13792.34693465,0.00010973,2]
[347418168,1735779047900,-210.48700114,0.00010973,2]
[347418169,1735779047909,-3292.96537642,0.00010975,2]
[347418170,1735779047920,-363.44696259,0.00010975,2]
[347418171,1735779047930,-210.48700114,0.00010976,2]
[347418172,1735779047939,-13792.34693465,0.00010976,2]
[347418173,1735779047948,-210.48700114,0.00010977,2]
[347418174,1735779047957,-363.44696259,0.00010977,2]
[347418175,1735779047967,-210.48700114,0.00010977,2]
[347418176,1735779047977,-9412.68047468,0.00010978,2]
[347418177,1735779047986,-3292.96537642,0.0001098,2]
[347418178,1735779047996,-5451.70443885,0.0001098,2]
[347418179,1735779048005,-200.0,0.0001098,2]
[347418180,1735779048015,-200.0,0.00010981,2]
[347418181,1735779048024,-200.0,0.00010982,2]
[347418182,1735779048033,-363.44696259,0.00010982,2]
[347418183,1735779048042,-13792.34693465,0.00010982,2]
[347418184,1735779048051,-9412.68047468,0.00010983,2]
[347418185,1735779048060,-13792.34693465,0.00010986,2]
[347418186,1735779048070,-400.0,0.00010986,2]
[347418187,1735779048079,-5451.70443885,0.00010987,2]
[347418188,1735779048088,-6542.04532661,0.00010989,2]
[347418189,1735779048097,-9412.68047468,0.00010989,2]
[347418190,1735779048106,-9412.68047468,0.00010989,2]
[347418191,1735779048115,-363.44696259,0.00010991,2]
[347418192,1735779048125,-200.0,0.00010991,2]
[347418193,1735779048134,-3292.96537642,0.00010991,2]
[347418194,1735779048144,-200.0,0.00010991,2]
[347418195,1735779048153,-363.44696259,0.00010992,2]
[347418196,1735779048162,-556.419,0.00010995,2]
[347418197,1735779048173,-3892.0,0.00010995,2]
[347418198,1735779048182,-2096.168,0.00010995,2]
[347418199,1735779048191,-150.0,0.00010995,2]
[347418200,1735779048200,-3292.96537642,0.00010996,2]
[347418201,1735779048210,-6542.04532661,0.00010996,2]
[347418202,1735779048219,-363.44696259,0.00010996,2]
[347418203,1735779048229,-6542.04532661,0.00010996,2]
[347418204,1735779048238,-200.0,0.00010997,2]
[347418205,1735779048247,-13792.34693465,0.00010998,2]
[347418206,1735779048256,-3292.96537642,0.00010998,2]
[347418207,1735779048265,-2886.29,0.00010998,2]
[347418208,1735779048275,-897.96,0.00010998,2]
[347418209,1735779048284,-1340.24,0.00010998,2]
[347418210,1735779048293,-8261.59,0.00010998,2]
[347418211,1735779048302,-1242.86,0.00010998,2]
[347418212,1735779048311,-787.89,0.00010998,2]
[347418213,1735779048320,-2615.22,0.00010998,2]
[347418214,1735779048330,-2076.4,0.00010998,2]
[347418215,1735779048339,-2457.44,0.00010998,2]
[347418216,1735779048348,-1793.57,0.00010998,2]
[347418217,1735779048357,-1908.24,0.00010998,2]
[347418218,1735779048367,-1710.64,0.00010998,2]
[347418219,1735779048376,-3991.97,0.00010998,2]
[347418220,1735779048386,-3819.56,0.00010998,2]
[347418221,1735779048395,-1786.84,0.00010998,2]
[347418222,1735779048404,-3094.89,0.00010998,2]
[347418223,1735779048413,-4008.63,0.00010998,2]
[347418224,1735779048423,-150.0,0.00010999,2]
[347418225,1735779048432,-200.0,0.00010999,3]
[347418226,1735779048443,-1498.60171808,0.00010999,3]
[347418227,1735779048452,-1498.60171808,0.00010999,3]
[347418228,1735779048461,-200.0,0.00010999,3]
[347418229,1735779048471,-845.71,0.00010999,2]
[347418230,1735779048480,-3000.0,0.00010999,2]
[347418231,1735779048492,-500.0,0.00010999,2]
[347418232,1735779048502,-500.0,0.00010999,2]
[347418233,1735779048511,-500.0,0.00010999,2]
[347418234,1735779048520,-500.0,0.00010999,2]
[347418235,1735779048530,-463.93868607,0.00010999,2]
[347418236,1735779048540,-210.48700114,0.00011,2]
[347418237,1735779048549,-3787.29594149,0.00011,2]
[347418238,1735779048558,-1044801.60430696,0.00011,2]
[347418239,1735779048568,-20000.0,0.00011,2]
[347418240,1735779048577,-579263.05766968,0.00011,2]
[347418241,1735779049093,-1625.40126439,0.00011,2]
[347418242,1735779049110,-2893.20685578,0.00011,2]
[347418243,1735779049128,-1334.16586697,0.00011,2]
[347418244,1735779049139,-3538.4946,0.00011,2]
[347418245,1735779049150,-474.14193232,0.00011,2]
[347418246,1735779049186,-30970.85105002,0.00011,2]
[347418247,1735779049198,-177536.63300224,0.00011,2]
[347418248,1735779049209,-327.7609853,0.00011,2]
[347418249,1735779171908,7355.8815754,0.00024701,30]
[347418250,1735779284303,10000.0,9.606e-05,2]
[347418251,1735779294627,10000.0,9.606e-05,2]
[347418252,1735779303867,10000.0,9.606e-05,2]
[347418253,1735779314448,10000.0,9.606e-05,2]
[347418255,1735779446253,1000.72,8.219e-05,2]
[347418257,1735779895483,250.0,9.59e-05,2]
[347418258,1735779920889,1000.0,9.59e-05,2]
[347418263,1735780191520,250.0,9.574e-05,2]
[347418264,1735780197072,10000.0,0.00024677,120]
[347418265,1735780204209,10000.0,0.00024677,120]
[347418266,1735780216715,50000.0,0.00024677,120]
[347418273,1735780232378,-250.0,9.618e-05,2]
[347418274,1735780232387,-427.41,9.64e-05,2]
[347418275,1735780232396,-802.47,9.682e-05,2]
[347418276,1735780232406,-1055.23,9.684e-05,2]
[347418277,1735780232416,-300.0,9.731e-05,2]
[347418278,1735780232426,-203.3150481,9.732e-05,2]
[347418279,1735780232437,-303.39286055,9.732e-05,2]
[347418280,1735780232446,-2814.7299538,9.732e-05,2]
[347418281,1735780232458,-579.36353194,9.732e-05,2]
[347418282,1735780232469,-8889.50442084,9.732e-05,2]
[347418283,1735780232480,-397.92779334,9.732e-05,2]
[347418284,1735780232491,-5731.04,9.732e-05,2]
[347418285,1735780232504,-541.12784328,9.732e-05,2]
[347418286,1735780232515,-500.0,9.732e-05,2]
[347418287,1735780232547,-4446.3064568,9.732e-05,2]
[347418288,1735780232556,-164.96,9.778e-05,2]
[347418289,1735780232565,-210.0,0.0001,4]
[347418290,1735780232575,-150.99,0.0001,2]
[347418291,1735780232584,-299.99,0.0001,2]
[347418292,1735780232593,-600.0,0.0001,3]
[347418293,1735780232602,-1200.0,0.000101,3]
[347418294,1735780232611,-85.4684565,0.00010137,2]
[347418295,1735780232623,-221.1115435,0.00010137,2]
[347418296,1735780232632,-152.92,0.00010137,2]
[347418297,1735780232642,-503.8,0.00010184,2]
[347418298,1735780232651,-654.11,0.00010192,2]
[347418299,1735780232660,-1900.0,0.000102,3]
[347418300,1735780232669,-509.47,0.00010212,2]
[347418301,1735780232678,-10907.83230685,0.00010248,2]
[347418302,1735780232701,-336.50062,0.00010248,2]
[347418303,1735780232711,-972.65235318,0.00010248,2]
[347418304,1735780234843,-3090.44583959,0.00010248,2]
[347418310,1735780238314,-3593.88520939,0.00010248,2]
[347418311,1735780238376,-1011.86821652,0.00010248,2]
[347418312,1735780238387,-1205.0538575,0.00010248,2]
[347418313,1735780238398,-10778.76159697,0.00010248,2]
[347418314,1735780238407,-507.72,0.00010258,2]
[347418315,1735780238417,-2500.0,0.000103,3]
[347418316,1735780238426,-503.24,0.00010332,2]
[347418317,1735780238435,-437.54,0.00010341,2]
[347418318,1735780238444,-437.54,0.00010341,2]
[347418319,1735780238453,-978.7,0.00010378,2]
[347418320,1735780238463,-436.52,0.00010378,2]
[347418321,1735780238472,-150.0,0.00010378,2]
[347418322,1735780238481,-150.0,0.00010378,2]
[347418323,1735780238490,-978.7,0.00010378,2]
[347418324,1735780238500,-978.7,0.00010378,2]
[347418325,1735780238509,-270.37085643,0.00010378,2]
[347418326,1735780238554,-347.04,0.00010378,2]
[347418327,1735780238565,-361.28914357,0.00010378,2]
[347418328,1735780238575,-1844.40173154,0.000104,3]
[347418329,1735780238599,-1355.59826846,0.000104,3]
[347418330,1735780238609,-506.841,0.0001045,2]
[347418331,1735780238619,-1000.72,0.00010461,2]
[347418332,1735780238628,-600.0,0.000105,3]
[347418333,1735780238638,-363.32062561,0.00010525,2]
[347418334,1735780238647,-4814.0,0.00010526,2]
[347418335,1735780238659,-500.0,0.00010561,2]
[347418336,1735780238669,-366.15,0.00010575,2]
[347418337,1735780238678,-305.2,0.00010578,2]
[347418338,1735780238687,-600.0,0.000106,3]
[347418339,1735780238697,-568.16829593,0.000107,3]
[347418340,1735780238711,-31.83170407,0.000107,3]
[347418341,1735780238720,-420.0,0.00010704,2]
[347418342,1735780238730,-166.55,0.00010759,2]
[347418343,1735780238739,-1000.0,0.00010788,2]
[347418344,1735780238750,-14849.24385035,0.000108,2]
[347418345,1735780238759,-600.0,0.000108,3]
[347418346,1735780238769,-3892.0,0.00010854,2]
[347418347,1735780238779,-150.0,0.00010854,2]
[347418348,1735780238788,-3121.1731,0.00010858,2]
[347418349,1735780238798,-2500.0,0.00010858,2]
[347418350,1735780238807,-503.17,0.00010862,2]
[347418351,1735780238816,-3000.0,0.0001089,2]
[347418352,1735780238826,-1055.23,0.00010894,2]
[347418353,1735780238836,-501.27,0.00010896,2]
[347418354,1735780238845,-300.0,0.000109,4]
[347418355,1735780238854,-210.0,0.000109,4]
[347418356,1735780238864,-210.0,0.000109,5]
[347418357,1735780238873,-210.0,0.000109,6]
[347418358,1735780238883,-210.0,0.000109,3]
[347418359,1735780238892,-230.0,0.000109,3]
[347418360,1735780238901,-1000.0,0.000109,3]
[347418361,1735780238910,-492.41,0.0001094,2]
[347418362,1735780238919,-1317.84,0.00010958,2]
[347418363,1735780238929,-500.0,0.00010958,2]
[347418364,1735780238938,-500.0,0.00010958,2]
[347418365,1735780238947,-500.0,0.00010958,2]
[347418367,1735780238956,-517.99,0.00010958,2]
[347418368,1735780238965,-500.0,0.00010958,2]
[347418369,1735780238979,-791.97,0.00010958,2]
[347418370,1735780238989,-1159.29,0.00010958,2]
[347418371,1735780239000,-500.0,0.00010958,2]
[347418372,1735780239011,-500.0,0.00010958,2]
[347418373,1735780239020,-500.0,0.00010958,2]
[347418374,1735780239030,-500.0,0.00010958,2]
[347418375,1735780239039,-1100.03,0.00010958,2]
[347418376,1735780239048,-643.92,0.00010958,2]
[347418377,1735780239059,-500.0,0.00010958,2]
[347418378,1735780239069,-500.0,0.00010958,2]
[347418379,1735780239078,-500.0,0.00010958,2]
[347418380,1735780239087,-500.0,0.00010958,2]
[347418381,1735780239096,-511.76,0.00010958,2]
[347418382,1735780239105,-693.36,0.00010958,2]
[347418383,1735780239114,-587.02,0.00010958,2]
[347418384,1735780239123,-704.28,0.00010958,2]
[347418385,1735780239132,-767.59,0.00010958,2]
[347418386,1735780239141,-500.0,0.00010958,2]
[347418387,1735780239150,-500.0,0.00010958,2]
[347418388,1735780239159,-500.0,0.00010958,2]
[347418389,1735780239167,-500.0,0.00010958,2]
[347418390,1735780239176,-557.63,0.00010958,2]
[347418391,1735780239186,-500.0,0.00010958,2]
[347418392,1735780239198,-500.0,0.00010958,2]
[347418393,1735780239208,-1060.07,0.00010958,2]
[347418394,1735780239218,-1216.92,0.00010958,2]
[347418395,1735780239227,-500.0,0.00010958,2]
[347418396,1735780239236,-500.0,0.00010958,2]
[347418397,1735780239245,-500.0,0.00010958,2]
[347418398,1735780239255,-500.0,0.00010958,2]
[347418399,1735780239264,-763.36,0.00010958,2]
[347418400,1735780239273,-500.0,0.00010958,2]
[347418401,1735780239282,-500.0,0.00010958,2]
[347418402,1735780239291,-500.0,0.00010958,2]
[347418403,1735780239300,-500.0,0.00010958,2]
[347418404,1735780239309,-500.0,0.00010958,2]
[347418405,1735780239318,-500.0,0.00010958,2]
[347418406,1735780239327,-500.0,0.00010958,2]
[347418407,1735780239336,-500.0,0.00010958,2]
[347418408,1735780239346,-500.0,0.00010958,2]
[347418409,1735780239355,-500.0,0.00010958,2]
[347418410,1735780239364,-500.0,0.00010958,2]
[347418411,1735780239373,-500.0,0.00010958,2]
[347418412,1735780239383,-500.0,0.00010958,2]
[347418413,1735780239391,-603.67,0.00010958,2]
[347418414,1735780239401,-601.38,0.00010958,2]
[347418415,1735780239410,-500.0,0.00010958,2]
[347418416,1735780239419,-500.0,0.00010958,2]
[347418417,1735780239428,-1029.61,0.00010958,2]
[347418418,1735780239437,-500.0,0.00010958,2]
[347418419,1735780239448,-1712.39,0.00010958,2]
[347418420,1735780239458,-476.44165005,0.00010958,2]
[347418421,1735780239549,74148.0,0.00024677,120]
[347418424,1735780240350,-23.55834995,0.00010958,2]
[347418425,1735780240361,-649.36,0.00010958,2]
[347418426,1735780240371,-605.48,0.00010958,2]
[347418427,1735780240381,-359.48036135,0.00010958,2]
[347418428,1735780240393,-140.51963865,0.00010958,2]
[347418429,1735780240402,-588.34746626,0.00010958,2]
[347418430,1735780240575,-117.01253374,0.00010958,2]
[347418431,1735780240585,-500.0,0.00010958,2]
[347418432,1735780240594,-2965.93,0.00010958,2]
[347418433,1735780240603,-335.79742576,0.00010958,2]
[347418434,1735780240615,-164.20257424,0.00010958,2]
[347418435,1735780240624,-500.0,0.00010958,2]
[347418436,1735780240633,-800.18541976,0.00010958,2]
[347418448,1735780243436,-383.60969963,0.00010958,2]
[347418449,1735780243662,-244.54488061,0.00010958,2]
[347418450,1735780243671,-500.0,0.00010958,2]
[347418451,1735780243680,-500.0,0.00010958,2]
[347418452,1735780243689,-500.0,0.00010958,2]
[347418453,1735780243699,-500.0,0.00010958,2]
[347418454,1735780243707,-500.0,0.00010958,2]
[347418455,1735780243717,-500.0,0.00010958,2]
[347418456,1735780243726,-915.1,0.00010958,2]
[347418457,1735780243735,-1061.87093339,0.00010958,2]
[347418714,1735780246466,-724.24906661,0.00010958,2]
[347418716,1735780246476,-1873.38086354,0.00010958,2]
[347418718,1735780246488,-1968.22913646,0.00010958,2]
[347418720,1735780246497,-34.08904267,0.00010958,2]
[347418722,1735780246509,-324.36999,0.00010958,2]
[347418724,1735780246520,-390.02,0.00010958,2]
[347418734,1735780246606,-1722.84096733,0.00010958,2]
[347418736,1735780246615,-500.0,0.00010958,2]
[347418738,1735780246625,-500.0,0.00010958,2]
[347418740,1735780246634,-500.0,0.00010958,2]
[347418742,1735780246643,-1032.27,0.00010958,2]
[347418744,1735780246652,-500.0,0.00010958,2]
[347418746,1735780246661,-500.0,0.00010958,2]
[347418748,1735780246671,-500.0,0.00010958,2]
[347418750,1735780246680,-500.0,0.00010958,2]
[347418752,1735780246689,-553.6,0.00010958,2]
[347418754,1735780246699,-492.58653629,0.00010958,2]
[347418756,1735780246708,-500.0,0.00010958,2]
[347418758,1735780246717,-1055.3,0.00010958,2]
[347418760,1735780246727,-2317.54,0.00010958,2]
[347418762,1735780246736,-500.0,0.00010958,2]
[347418764,1735780246745,-792.63,0.00010958,2]
[347418766,1735780246754,-351.274458,0.00010958,2]
[347418768,1735780246765,-500.0,0.00010958,2]
[347418770,1735780246774,-500.0,0.00010958,2]
[347418772,1735780246783,-500.0,0.00010958,2]
[347418774,1735780246792,-500.0,0.00010958,2]
[347418776,1735780246801,-500.0,0.00010958,2]
[347418777,1735780246812,-500.0,0.00010958,2]
[347418779,1735780246821,-781.87,0.00010958,2]
[347418781,1735780246830,-500.0,0.00010958,2]
[347418783,1735780246840,-178.55011702,0.00010958,2]
[347418785,1735780246849,-500.0,0.00010958,2]
[347418788,1735780246858,-500.0,0.00010958,2]
[347418789,1735780246868,-500.0,0.00010958,2]
[347418792,1735780246878,-500.0,0.00010958,2]
[347418794,1735780246887,-500.0,0.00010958,2]
[347418796,1735780246896,-500.0,0.00010958,2]
[347418798,1735780246905,-500.0,0.00010958,2]
[347418800,1735780246914,-500.0,0.00010958,2]
[347418802,1735780246924,-195.19569314,0.00010958,2]
[347418804,1735780246933,-1184.76,0.00010958,2]
[347418806,1735780246942,-1226.23,0.00010958,2]
[347418808,1735780246951,-1198.59,0.00010958,2]
[347418809,1735780246960,-500.0,0.00010958,2]
[347418811,1735780246970,-1105.34,0.00010958,2]
[347418814,1735780246983,-500.0,0.00010958,2]
[347418816,1735780246993,-500.0,0.00010958,2]
[347418817,1735780247002,-500.0,0.00010958,2]
[347418820,1735780247012,-6116.93,0.00010958,2]
[347418822,1735780247022,-500.0,0.00010958,2]
[347418823,1735780247031,-500.0,0.00010958,2]
[347418825,1735780247040,-689.25,0.00010958,2]
[347418828,1735780247051,-708.81,0.00010958,2]
[347418830,1735780247060,-500.0,0.00010958,2]
[347418831,1735780247070,-500.0,0.00010958,2]
[347418833,1735780247080,-886.91,0.00010958,2]
[347418835,1735780247089,-754.86,0.00010958,2]
[347418838,1735780247099,-500.0,0.00010958,2]
[347418839,1735780247108,-500.0,0.00010958,2]
[347418842,1735780247118,-1018.75,0.00010958,2]
[347418844,1735780247127,-654.38,0.00010958,2]
[347418846,1735780247136,-500.0,0.00010958,2]
[347418847,1735780247145,-500.0,0.00010958,2]
[347418849,1735780247154,-773.04,0.00010958,2]
[347418851,1735780247164,-561.24,0.00010958,2]
[347418853,1735780247173,-552.81,0.00010958,2]
[347418855,1735780247182,-500.0,0.00010958,2]
[347418857,1735780247192,-500.0,0.00010958,2]
[347418859,1735780247201,-929.03,0.00010958,2]
[347418861,1735780247210,-726.61,0.00010958,2]
[347418863,1735780247220,-500.0,0.00010958,2]
[347418865,1735780247229,-3186.37,0.00010958,2]
[347418867,1735780247238,-1059.16,0.00010958,2]
[347418869,1735780247247,-820.87,0.00010958,2]
[347418870,1735780247257,-500.0,0.00010958,2]
[347418871,1735780247266,-500.0,0.00010958,2]
[347418872,1735780247278,-368.85179417,0.00010958,2]
[347418873,1735780247287,-500.0,0.00010958,2]
[347418874,1735780247296,-788.98,0.00010958,2]
[347418875,1735780247305,-500.0,0.00010958,2]
[347418876,1735780247314,-1372.22,0.00010958,2]
[347418877,1735780247323,-1229.46,0.00010958,2]
[347418878,1735780247333,-969.86,0.00010958,2]
[347418879,1735780247343,-377.77125011,0.00010958,2]
[347418880,1735780247352,-500.0,0.00010958,2]
[347418881,1735780247361,-682.02,0.00010958,2]
[347418882,1735780247370,-500.0,0.00010958,2]
[347418883,1735780247379,-500.0,0.00010958,2]
[347418885,1735780247388,-500.0,0.00010958,2]
[347418887,1735780247397,-500.0,0.00010958,2]
[347418889,1735780247407,-1207.46,0.00010958,2]
[347418891,1735780247416,-616.34,0.00010958,2]
[347418893,1735780247425,-500.0,0.00010958,2]
[347418895,1735780247435,-580.78,0.00010958,2]
[347418897,1735780247444,-13400.63,0.00010958,2]
[347418899,1735780247454,-500.0,0.00010958,2]
[347418901,1735780247463,-500.0,0.00010958,2]
[347418903,1735780247473,-1087.03,0.00010958,2]
[347418905,1735780247482,-691.96,0.00010958,2]
[347418907,1735780247491,-929.04,0.00010958,2]
[347418909,1735780247500,-713.58,0.00010958,2]
[347418911,1735780247510,-600.35219735,0.00010958,2]
[347418913,1735780247520,-487.1146719,0.00010958,2]
[347418915,1735780247529,-1016.92,0.00010958,2]
[347418917,1735780247538,-500.0,0.00010958,2]
[347418919,1735780247547,-1191.07,0.00010958,2]
[347418921,1735780247556,-961.67,0.00010958,2]
[347418923,1735780247565,-500.0,0.00010958,2]
[347418925,1735780247577,-500.0,0.00010958,2]
[347418927,1735780247586,-500.0,0.00010958,2]
[347418928,1735780247595,-500.0,0.00010958,2]
[347418930,1735780247604,-500.0,0.00010958,2]
[347418932,1735780247614,-500.0,0.00010958,2]
[347418934,1735780247622,-261.21504077,0.00010958,2]
[347418936,1735780247631,-500.0,0.00010958,2]
[347418938,1735780247641,-500.0,0.00010958,2]
[347418940,1735780247650,-500.0,0.00010958,2]
[347418942,1735780247659,-7353.23,0.00010958,2]
[347418944,1735780247668,-1183.09,0.00010958,2]
[347418946,1735780247676,-822.56,0.00010958,2]
[347418948,1735780247685,-610.74,0.00010958,2]
[347418950,1735780247694,-500.0,0.00010958,2]
[347418952,1735780247703,-500.0,0.00010958,2]
[347418954,1735780247712,-500.0,0.00010958,2]
[347418956,1735780247721,-855.35,0.00010958,2]
[347418958,1735780247731,-500.0,0.00010958,2]
[347418960,1735780247739,-500.0,0.00010958,2]
[347418962,1735780247748,-500.0,0.00010958,2]
[347418964,1735780247758,-512.44,0.00010958,2]
[347418966,1735780247767,-500.0,0.00010958,2]
[347418968,1735780247776,-917.1,0.00010958,2]
[347418970,1735780247786,-500.0,0.00010958,2]
[347418972,1735780247795,-500.0,0.00010958,2]
[347418974,1735780247804,-500.0,0.00010958,2]
[347418976,1735780247813,-1848.44,0.00010958,2]
[347418978,1735780247822,-557.35,0.00010958,2]
[347418980,1735780247831,-500.0,0.00010958,2]
[347418982,1735780247840,-500.0,0.00010958,2]
[347418983,1735780247849,-615.59,0.00010958,2]
[347418985,1735780247859,-910.35,0.00010958,2]
[347418987,1735780247867,-500.0,0.00010958,2]
[347418989,1735780247877,-676.75,0.00010958,2]
[347418991,1735780247886,-500.0,0.00010958,2]
[347418993,1735780247895,-1210.88,0.00010958,2]
[347418995,1735780247904,-614.56516976,0.00010958,2]
[347418997,1735780247913,-500.0,0.00010958,2]
[347418999,1735780247922,-500.0,0.00010958,2]
[347419001,1735780247931,-1214.95,0.00010958,2]
[347419003,1735780247941,-500.0,0.00010958,2]
[347419005,1735780247951,-388.18747726,0.00010958,2]
[347419007,1735780247960,-710.69,0.00010958,2]
[347419009,1735780247969,-500.0,0.00010958,2]
[347419011,1735780247982,-693.65,0.00010958,2]
[347419013,1735780247992,-2506.25,0.00010958,2]
[347419015,1735780248001,-643.91,0.00010958,2]
[347419017,1735780248012,-500.0,0.00010958,2]
[347419019,1735780248022,-426.32296441,0.00010958,2]
[347419021,1735780248032,-500.0,0.00010958,2]
[347419023,1735780248042,-516.22,0.00010958,2]
[347419025,1735780248053,-667.87,0.00010958,2]
[347419027,1735780248064,-500.0,0.00010958,2]
[347419029,1735780248074,-500.0,0.00010958,2]
[347419059,1735780248354,-500.0,0.00010958,2]
[347419061,1735780248364,-500.0,0.00010958,2]
[347419063,1735780248373,-5490.18,0.00010958,2]
[347419065,1735780248382,-500.0,0.00010958,2]
[347419067,1735780248392,-500.0,0.00010958,2]
[347419069,1735780248401,-500.0,0.00010958,2]
[347419071,1735780248410,-708.12,0.00010958,2]
[347419073,1735780248420,-500.0,0.00010958,2]
[347419075,1735780248429,-500.0,0.00010958,2]
[347419077,1735780248438,-500.0,0.00010958,2]
[347419079,1735780248447,-541.02,0.00010958,2]
[347419081,1735780248456,-724.08,0.00010958,2]
[347419083,1735780248465,-1208.81,0.00010958,2]
[347419085,1735780248474,-1419.33,0.00010958,2]
[347419086,1735780248483,-587.04,0.00010958,2]
[347419088,1735780248493,-1018.26,0.00010958,2]
[347419090,1735780248502,-500.0,0.00010958,2]
[347419092,1735780248512,-500.0,0.00010958,2]
[347419094,1735780248521,-1108.28,0.00010958,2]
[347419096,1735780248530,-500.0,0.00010958,2]
[347419098,1735780248542,-500.0,0.00010958,2]
[347419100,1735780248552,-500.0,0.00010958,2]
[347419102,1735780248562,-864.67,0.00010958,2]
[347419104,1735780248571,-1989.88,0.00010958,2]
[347419106,1735780248581,-500.0,0.00010958,2]
[347419108,1735780248591,-3201.01,0.00010958,2]
[347419110,1735780248600,-500.0,0.00010958,2]
[347419112,1735780248610,-500.0,0.00010958,2]
[347419114,1735780248619,-2386.13,0.00010958,2]
[347419116,1735780248629,-500.0,0.00010958,2]
[347419118,1735780248638,-1219.23,0.00010958,2]
[347419120,1735780248648,-500.0,0.00010958,2]
[347419122,1735780248657,-820.63,0.00010958,2]
[347419124,1735780248666,-500.0,0.00010958,2]
[347419126,1735780248676,-707.05,0.00010958,2]
[347419128,1735780248685,-872.7,0.00010958,2]
[347419130,1735780248694,-500.0,0.00010958,2]
[347419132,1735780248703,-500.0,0.00010958,2]
[347419134,1735780248713,-1011.49,0.00010958,2]
[347419136,1735780248723,-694.38,0.00010958,2]
[347419138,1735780248732,-500.0,0.00010958,2]
[347419140,1735780248743,-848.89,0.00010958,2]
[347419143,1735780248753,-500.0,0.00010958,2]
[347419145,1735780248766,-589.98788322,0.00010958,2]
[347419147,1735780248778,-1228.54,0.00010958,2]
[347419148,1735780248788,-500.0,0.00010958,2]
[347419150,1735780248797,-1176.68,0.00010958,2]
[347419152,1735780248807,-500.0,0.00010958,2]
[347419154,1735780248816,-735.65,0.00010958,2]
[347419156,1735780248825,-827.06,0.00010958,2]
[347419158,1735780248834,-7954.5,0.00010958,2]
[347419160,1735780248843,-500.0,0.00010958,2]
[347419162,1735780248853,-2220.07,0.00010958,2]
[347419164,1735780248862,-500.0,0.00010958,2]
[347419166,1735780248871,-672.37,0.00010958,2]
[347419168,1735780248881,-518.29,0.00010958,2]
[347419170,1735780248891,-2355.05,0.00010958,2]
[347419172,1735780248900,-500.0,0.00010958,2]
[347419174,1735780248909,-500.0,0.00010958,2]
[347419176,1735780248919,-500.0,0.00010958,2]
[347419178,1735780248929,-500.0,0.00010958,2]
[347419180,1735780248938,-825.66,0.00010958,2]
[347419182,1735780248947,-500.0,0.00010958,2]
[347419184,1735780248956,-500.0,0.00010958,2]
[347419186,1735780248966,-1123.53,0.00010958,2]